fUSD/lending_fUSD_20250514
["ID","MTS","AMOUNT","RATE_DAILY","PERIOD"]
[361081444,1747237841781,-2304.76,0.00010958,2]
[361081446,1747237841790,-1043.09,0.00010958,2]
[361081448,1747237841798,-964.73,0.00010958,2]
[361081450,1747237841806,-400.0,0.00010958,2]
[361081452,1747237841815,-400.0,0.00010958,2]
[361081454,1747237841824,-400.0,0.00010958,2]
[361081456,1747237841833,-400.0,0.00010958,2]
[361081458,1747237841842,-1466.04,0.00010958,2]
[361081460,1747237841851,-400.0,0.00010958,2]
[361081462,1747237841860,-400.0,0.00010958,2]
[361081464,1747237841869,-1378.68,0.00010958,2]
[361081466,1747237841879,-558.28,0.00010958,2]
[361081467,1747237841886,-400.0,0.00010958,2]
[361081469,1747237841895,-758.85,0.00010958,2]
[361081471,1747237841903,-1126.27,0.00010958,2]
[361081473,1747237841911,-1531.97,0.00010958,2]
[361081475,1747237841919,-5413.88,0.00010958,2]
[361081477,1747237841927,-400.0,0.00010958,2]
[361081479,1747237841934,-475.32,0.00010958,2]
[361081481,1747237841940,-604.01,0.00010958,2]
[361081483,1747237841948,-710.95,0.00010958,2]
[361081485,1747237841955,-845.67,0.00010958,2]
[361081486,1747237841961,-400.0,0.00010958,2]
[361081488,1747237841970,-2563.44,0.00010958,2]
[361081490,1747237841979,-400.0,0.00010958,2]
[361081492,1747237841988,-12099.68,0.00010958,2]
[361081494,1747237841997,-400.0,0.00010958,2]
[361081496,1747237842007,-468.18,0.00010958,2]
[361081498,1747237842016,-727.9,0.00010958,2]
[361081500,1747237842025,-400.0,0.00010958,2]
[361081502,1747237842035,-400.0,0.00010958,2]
[361081504,1747237842044,-470.83,0.00010958,2]
[361081506,1747237842053,-2161.46,0.00010958,2]
[361081508,1747237842063,-400.0,0.00010958,2]
[361081510,1747237842072,-400.0,0.00010958,2]
[361081512,1747237842081,-1917.62,0.00010958,2]
[361081514,1747237842090,-400.0,0.00010958,2]
[361081516,1747237842099,-1898.1,0.00010958,2]
[361081517,1747237842108,-400.0,0.00010958,2]
[361081519,1747237842117,-400.0,0.00010958,2]
[361081521,1747237842127,-506.62,0.00010958,2]
[361081523,1747237842135,-1221.01,0.00010958,2]
[361081525,1747237842145,-1039.3,0.00010958,2]
[361081527,1747237842155,-521.08,0.00010958,2]
[361081529,1747237842165,-2031.05,0.00010958,2]
[361081531,1747237842174,-400.0,0.00010958,2]
[361081533,1747237842183,-471.89,0.00010958,2]
[361081535,1747237842192,-13823.26,0.00010958,2]
[361081537,1747237842202,-448.84,0.00010958,2]
[361081539,1747237842211,-1543.79,0.00010958,2]
[361081541,1747237842220,-400.0,0.00010958,2]
[361081543,1747237842229,-386.55955153,0.00010958,2]
[361081545,1747237842239,-400.0,0.00010958,2]
[361081547,1747237842248,-400.0,0.00010958,2]
[361081549,1747237842258,-1051.87,0.00010958,2]
[361081551,1747237842268,-400.0,0.00010958,2]
[361081553,1747237842277,-400.0,0.00010958,2]
[361081554,1747237842287,-1106.06,0.00010958,2]
[361081555,1747237842296,-400.0,0.00010958,2]
[361081556,1747237842306,-400.0,0.00010958,2]
[361081557,1747237842315,-400.0,0.00010958,2]
[361081558,1747237842324,-1772.94,0.00010958,2]
[361081559,1747237842334,-10992.83,0.00010958,2]
[361081560,1747237842345,-400.0,0.00010958,2]
[361081561,1747237842354,-400.0,0.00010958,2]
[361081562,1747237842363,-3880.61,0.00010958,2]
[361081563,1747237842373,-394.54519717,0.00010958,2]
[361081564,1747237842382,-400.0,0.00010958,2]
[361081565,1747237842391,-591.98,0.00010958,2]
[361081566,1747237842400,-400.0,0.00010958,2]
[361081567,1747237842410,-400.0,0.00010958,2]
[361081568,1747237842419,-400.0,0.00010958,2]
[361081569,1747237842428,-400.0,0.00010958,2]
[361081570,1747237842437,-2823.6,0.00010958,2]
[361081572,1747237842446,-400.0,0.00010958,2]
[361081574,1747237842455,-780.36,0.00010958,2]
[361081576,1747237842465,-400.0,0.00010958,2]
[361081578,1747237842475,-560.98,0.00010958,2]
[361081579,1747237842485,-4977.72,0.00010958,2]
[361081581,1747237842495,-400.0,0.00010958,2]
[361081583,1747237842505,-585.1,0.00010958,2]
[361081585,1747237842514,-436.67,0.00010958,2]
[361081586,1747237842524,-423.19,0.00010958,2]
[361081589,1747237842534,-400.0,0.00010958,2]
[361081590,1747237842544,-1118.79,0.00010958,2]
[361081592,1747237842554,-400.0,0.00010958,2]
[361081594,1747237842564,-400.0,0.00010958,2]
[361081596,1747237842573,-400.0,0.00010958,2]
[361081599,1747237842583,-630.8,0.00010958,2]
[361081601,1747237842593,-400.0,0.00010958,2]
[361081603,1747237842602,-461.76,0.00010958,2]
[361081606,1747237842616,-441.44,0.00010958,2]
[361081608,1747237842626,-960.34,0.00010958,2]
[361081610,1747237842636,-400.0,0.00010958,2]
[361081612,1747237842645,-3205.98,0.00010958,2]
[361081614,1747237842656,-400.0,0.00010958,2]
[361081615,1747237842665,-561.07,0.00010958,2]
[361081616,1747237842675,-400.0,0.00010958,2]
[361081617,1747237842686,-400.0,0.00010958,2]
[361081618,1747237842695,-562.76,0.00010958,2]
[361081619,1747237842704,-400.0,0.00010958,2]
[361081620,1747237842714,-406.58,0.00010958,2]
[361081621,1747237842723,-670.88,0.00010958,2]
[361081622,1747237842732,-400.0,0.00010958,2]
[361081623,1747237842742,-400.0,0.00010958,2]
[361081624,1747237842751,-400.0,0.00010958,2]
[361081625,1747237842761,-837.04,0.00010958,2]
[361081626,1747237842771,-601.17,0.00010958,2]
[361081627,1747237842780,-400.0,0.00010958,2]
[361081628,1747237842790,-400.0,0.00010958,2]
[361081629,1747237842800,-400.0,0.00010958,2]
[361081630,1747237842810,-400.0,0.00010958,2]
[361081631,1747237842819,-400.0,0.00010958,2]
[361081632,1747237842829,-400.0,0.00010958,2]
[361081633,1747237842839,-1233.47,0.00010958,2]
[361081634,1747237842849,-1233.47,0.00010958,2]
[361081635,1747237842859,-846.16,0.00010958,2]
[361081636,1747237842868,-515.36,0.00010958,2]
[361081637,1747237842878,-9214.3,0.00010958,2]
[361081638,1747237842887,-400.0,0.00010958,2]
[361081639,1747237842898,-400.0,0.00010958,2]
[361081640,1747237842908,-400.0,0.00010958,2]
[361081641,1747237842918,-6671.5,0.00010958,2]
[361081642,1747237842928,-683.25,0.00010958,2]
[361081643,1747237842938,-400.0,0.00010958,2]
[361081644,1747237842947,-2231.64,0.00010958,2]
[361081645,1747237842956,-655.8,0.00010958,2]
[361081646,1747237842965,-469.83130621,0.00010958,2]
[361081647,1747237842975,-842.38,0.00010958,2]
[361081648,1747237842984,-400.0,0.00010958,2]
[361081649,1747237842994,-63614.49,0.00010958,2]
[361081650,1747237843004,-7972.45,0.00010958,2]
[361081651,1747237843015,-400.0,0.00010958,2]
[361081652,1747237843025,-519.97,0.00010958,2]
[361081653,1747237843034,-400.0,0.00010958,2]
[361081654,1747237843044,-400.0,0.00010958,2]
[361081655,1747237843053,-400.0,0.00010958,2]
[361081656,1747237843062,-1261.92,0.00010958,2]
[361081657,1747237843071,-1467.1,0.00010958,2]
[361081658,1747237843081,-1021.51,0.00010958,2]
[361081659,1747237843090,-16140.32636228,0.00010958,2]
[361081660,1747237843118,-3073.26363772,0.00010958,2]
[361081661,1747237843127,-400.0,0.00010958,2]
[361081662,1747237843136,-406.63,0.00010958,2]
[361081663,1747237843145,-5890.35727795,0.00010958,2]
[361081664,1747237843157,-3000.0,0.00010958,2]
[361081667,1747237843168,-472.83272205,0.00010958,2]
[361081668,1747237843177,-14.69285292,0.00010958,2]
[361081670,1747237843212,-385.30714708,0.00010958,2]
[361081671,1747237843221,-572.14483709,0.00010958,2]
[361081672,1747237843233,-929.63516291,0.00010958,2]
[361081673,1747237843243,-400.0,0.00010958,2]
[361081674,1747237843253,-676.71,0.00010958,2]
[361081675,1747237843262,-400.0,0.00010958,2]
[361081676,1747237843271,-686.05483709,0.00010958,2]
[361081677,1747237843286,-1014.8513952,0.00010958,2]
[361081678,1747237843297,-395.59376771,0.00010958,2]
[361081679,1747237843306,-89.205457,0.00010958,2]
[361081680,1747237843839,-310.794543,0.00010958,2]
[361081681,1747237843849,-1027.27,0.00010958,2]
[361081682,1747237843860,-720.64043462,0.00010958,2]
[361081683,1747237843872,-59.59956538,0.00010958,2]
[361081684,1747237843882,-958.15,0.00010958,2]
[361081685,1747237843893,-400.0,0.00010958,2]
[361081686,1747237843903,-1655.59,0.00010958,2]
[361081687,1747237843912,-2830.68138891,0.00010958,2]
[361081688,1747237843924,-1202.33861109,0.00010958,2]
[361081689,1747237843935,-400.0,0.00010958,2]
[361081690,1747237843944,-795.91,0.00010958,2]
[361081691,1747237843953,-400.0,0.00010958,2]
[361081692,1747237843963,-400.0,0.00010958,2]
[361081693,1747237843973,-400.0,0.00010958,2]
[361081694,1747237843983,-989.78788025,0.00010958,2]
[361081695,1747237844022,-298.87211975,0.00010958,2]
[361081696,1747237844031,-156.33028915,0.00010958,2]
[361081697,1747237844093,-243.66971085,0.00010958,2]
[361081698,1747237844103,-400.0,0.00010958,2]
[361081699,1747237844113,-400.0,0.00010958,2]
[361081700,1747237844122,-596.75681142,0.00010958,2]
[361081701,1747237844132,-400.0,0.00010958,2]
[361081702,1747237844143,-22708.12,0.00010958,2]
[361081703,1747237844152,-400.0,0.00010958,2]
[361081704,1747237844162,-852.74,0.00010958,2]
[361081705,1747237844171,-400.0,0.00010958,2]
[361081706,1747237844181,-400.0,0.00010958,2]
[361081707,1747237844190,-493.82,0.00010958,2]
[361081708,1747237844200,-400.0,0.00010958,2]
[361081709,1747237844209,-559.2,0.00010958,2]
[361081710,1747237844219,-400.0,0.00010958,2]
[361081711,1747237844228,-400.0,0.00010958,2]
[361081712,1747237844239,-624.18,0.00010958,2]
[361081713,1747237844249,-450.09,0.00010958,2]
[361081714,1747237844259,-437.27,0.00010958,2]
[361081715,1747237844268,-400.0,0.00010958,2]
[361081716,1747237844278,-400.0,0.00010958,2]
[361081717,1747237844288,-400.0,0.00010958,2]
[361081718,1747237844298,-400.0,0.00010958,2]
[361081719,1747237844307,-1793.94,0.00010958,2]
[361081720,1747237844317,-400.0,0.00010958,2]
[361081721,1747237844327,-1423.56,0.00010958,2]
[361081722,1747237844336,-1000.0,0.00010958,2]
[361081723,1747237844346,-400.0,0.00010958,2]
[361081724,1747237844356,-400.0,0.00010958,2]
[361081725,1747237844366,-6498.68,0.00010958,2]
[361081726,1747237844375,-541.06,0.00010958,2]
[361081727,1747237844385,-969.01581903,0.00010981,2]
[361081728,1747237844397,-385.60659091,0.00010999,2]
[361081729,1747237844407,-151.0,0.00011,2]
[361081730,1747237844417,-151.0,0.00011,2]
[361081731,1747237844427,-1000.0,0.00011,2]
[361081732,1747237844437,-238.75477,0.00011,2]
[361081733,1747237844447,-238.75477,0.00011,2]
[361081734,1747237844457,-238.75477,0.00011,2]
[361081735,1747237844467,-238.75477,0.00011,2]
[361081736,1747237844476,-151.0,0.00011,2]
[361081737,1747237844486,-931.098575,0.00011,2]
[361081738,1747237844496,-931.098575,0.00011,2]
[361081739,1747237844505,-931.098575,0.00011,2]
[361081740,1747237844516,-931.098575,0.00011,2]
[361081741,1747237844525,-1000.0,0.00011006,2]
[361081742,1747237844535,-5524.08455463,0.0001101,2]
[361081743,1747237844545,-385.60659089,0.00011066,2]
[361081744,1747237844555,-155.33,0.00011073,2]
[361081745,1747237844565,-11111.72483275,0.00011099,2]
[361081746,1747237844574,-11111.72483266,0.00011099,2]
[361081747,1747237844583,-3015.91,0.000111,2]
[361081748,1747237844593,-212.2,0.000111,2]
[361081749,1747237844603,-1000.0,0.000111,2]
[361081750,1747237844617,-1000.0,0.00011113,2]
[361081751,1747237844627,-200.0,0.00011118,2]
[361081752,1747237844636,-200.0,0.00011118,2]
[361081753,1747237844648,-350.0,0.00011118,2]
[361081754,1747237844658,-20985.41376112,0.00011118,2]
[361081755,1747237844668,-264.95815375,0.00011118,2]
[361081756,1747237844678,-312.5,0.00011121,2]
[361081757,1747237844688,-1000.0,0.00011131,2]
[361081758,1747237844698,-196.52801519,0.00011132,2]
[361081759,1747237844710,-385.60659089,0.00011132,2]
[361081760,1747237844719,-1000.0,0.000112,2]
[361081761,1747237844729,-576.92549851,0.00011222,2]
[361081762,1747237844739,-1233.47,0.0001123,2]
[361081763,1747237844749,-1233.47,0.00011231,2]
[361081764,1747237844759,-931.098575,0.00011232,2]
[361081765,1747237844769,-931.098575,0.00011232,2]
[361081766,1747237844779,-400.0,0.00011232,2]
[361081767,1747237844789,-446.04,0.00011232,2]
[361081768,1747237844799,-627.78,0.00011232,2]
[361081769,1747237845065,-400.0,0.00011232,2]
[361081770,1747237845077,-400.0,0.00011232,2]
[361081771,1747237845087,-248.46234506,0.00011232,2]
[361081772,1747237845096,-537.09,0.00011232,2]
[361081773,1747237845105,-152.646049,0.00011232,2]
[361081774,1747237845115,-400.0,0.00011232,2]
[361081775,1747237845124,-400.0,0.00011232,2]
[361081776,1747237845133,-400.0,0.00011232,2]
[361081777,1747237845143,-400.0,0.00011232,2]
[361081778,1747237845153,-400.0,0.00011232,2]
[361081779,1747237845162,-400.0,0.00011232,2]
[361081780,1747237845171,-400.0,0.00011232,2]
[361081781,1747237845180,-400.0,0.00011232,2]
[361081782,1747237845189,-400.0,0.00011232,2]
[361081783,1747237845197,-400.0,0.00011232,2]
[361081784,1747237845206,-400.0,0.00011232,2]
[361081785,1747237845214,-400.0,0.00011232,2]
[361081786,1747237845223,-400.0,0.00011232,2]
[361081787,1747237845233,-400.0,0.00011232,2]
[361081788,1747237845243,-400.0,0.00011232,2]
[361081789,1747237845252,-151.0,0.00011232,2]
[361081790,1747237845262,-400.0,0.00011232,2]
[361081791,1747237845272,-151.0,0.00011232,2]
[361081792,1747237845281,-151.53045,0.00011232,2]
[361081793,1747237845291,-400.0,0.00011232,2]
[361081794,1747237845301,-404.227647,0.00011232,2]
[361081795,1747237845311,-400.0,0.00011232,2]
[361081796,1747237845321,-151.0,0.00011232,2]
[361081797,1747237845330,-400.0,0.00011232,2]
[361081798,1747237845340,-400.0,0.00011232,2]
[361081799,1747237845349,-204.383808,0.00011232,2]
[361081800,1747237845359,-204.383808,0.00011232,2]
[361081801,1747237845369,-151.0,0.00011232,2]
[361081802,1747237845378,-400.0,0.00011232,2]
[361081803,1747237845388,-400.0,0.00011232,2]
[361081804,1747237845398,-19790.83859,0.00011232,2]
[361081805,1747237845408,-190.775483,0.00011232,2]
[361081806,1747237845418,-151.0,0.00011232,2]
[361081807,1747237845427,-151.0,0.00011232,2]
[361081808,1747237845437,-400.0,0.00011232,2]
[361081809,1747237845446,-400.0,0.00011232,2]
[361081810,1747237845456,-400.0,0.00011232,2]
[361081811,1747237845466,-400.0,0.00011232,2]
[361081812,1747237845475,-400.0,0.00011232,2]
[361081813,1747237845485,-400.0,0.00011232,2]
[361081814,1747237845494,-151.0,0.00011232,2]
[361081815,1747237845504,-151.0,0.00011232,2]
[361081816,1747237845513,-400.0,0.00011232,2]
[361081817,1747237845523,-151.0,0.00011232,2]
[361081818,1747237845532,-400.0,0.00011232,2]
[361081819,1747237845542,-408.94,0.00011232,2]
[361081820,1747237845552,-613.08,0.00011232,2]
[361081821,1747237845562,-151.0,0.00011232,2]
[361081822,1747237845572,-400.0,0.00011232,2]
[361081823,1747237845581,-400.0,0.00011232,2]
[361081824,1747237845591,-151.0,0.00011232,2]
[361081825,1747237845600,-151.0,0.00011232,2]
[361081826,1747237845613,-400.0,0.00011232,2]
[361081827,1747237845622,-400.0,0.00011232,2]
[361081828,1747237845631,-663.67,0.00011232,2]
[361081829,1747237845641,-400.0,0.00011232,2]
[361081830,1747237845652,-263.54843,0.00011232,2]
[361081831,1747237845661,-537.55,0.00011232,2]
[361081832,1747237845671,-151.0,0.00011232,2]
[361081833,1747237845681,-1084.21,0.00011232,2]
[361081834,1747237845691,-400.0,0.00011232,2]
[361081835,1747237845701,-400.0,0.00011232,2]
[361081836,1747237845713,-400.0,0.00011232,2]
[361081837,1747237845723,-400.0,0.00011232,2]
[361081838,1747237845732,-1036.2,0.00011232,2]
[361081839,1747237845742,-400.0,0.00011232,2]
[361081840,1747237845752,-766.33,0.00011232,2]
[361081841,1747237845761,-400.0,0.00011232,2]
[361081842,1747237845771,-942.05,0.00011232,2]
[361081843,1747237845780,-400.0,0.00011232,2]
[361081844,1747237845790,-187.83926691,0.00011232,2]
[361081845,1747237845800,-151.0,0.00011232,2]
[361081846,1747237845809,-459.28,0.00011232,2]
[361081847,1747237845819,-400.5,0.00011232,2]
[361081848,1747237845828,-689.52,0.00011232,2]
[361081849,1747237845838,-400.0,0.00011232,2]
[361081850,1747237845848,-459.65,0.00011232,2]
[361081851,1747237845859,-491.849714,0.00011232,2]
[361081852,1747237845868,-400.0,0.00011232,2]
[361081853,1747237845878,-532.72,0.00011232,2]
[361081854,1747237845888,-491.849714,0.00011232,2]
[361081855,1747237845898,-400.0,0.00011232,2]
[361081856,1747237845907,-367.24377034,0.00011232,2]
[361081857,1747237845918,-400.0,0.00011232,2]
[361081858,1747237845929,-477.42,0.00011232,2]
[361081859,1747237845939,-453.27,0.00011232,2]
[361081860,1747237845950,-602.99,0.00011232,2]
[361081861,1747237845960,-400.0,0.00011232,2]
[361081862,1747237845969,-400.0,0.00011232,2]
[361081863,1747237845979,-400.0,0.00011232,2]
[361081864,1747237845988,-400.0,0.00011232,2]
[361081865,1747237845998,-400.0,0.00011232,2]
[361081866,1747237846007,-400.0,0.00011232,2]
[361081867,1747237846017,-400.0,0.00011232,2]
[361081868,1747237846026,-400.0,0.00011232,2]
[361081869,1747237846036,-441.77,0.00011232,2]
[361081870,1747237846045,-431.05,0.00011232,2]
[361081871,1747237846055,-400.0,0.00011232,2]
[361081872,1747237846065,-619.3,0.00011232,2]
[361081873,1747237846074,-458.69,0.00011232,2]
[361081874,1747237846083,-151.0,0.00011232,2]
[361081875,1747237846093,-400.0,0.00011232,2]
[361081876,1747237846102,-400.0,0.00011232,2]
[361081877,1747237846111,-400.0,0.00011232,2]
[361081878,1747237846121,-400.0,0.00011232,2]
[361081879,1747237846130,-739.7,0.00011232,2]
[361081880,1747237846140,-400.0,0.00011232,2]
[361081881,1747237846151,-151.0,0.00011232,2]
[361081882,1747237846161,-151.0,0.00011232,2]
[361081883,1747237846171,-400.0,0.00011232,2]
[361081884,1747237846180,-400.0,0.00011232,2]
[361081885,1747237846190,-1081.08,0.00011232,2]
[361081886,1747237846200,-400.0,0.00011232,2]
[361081887,1747237846210,-400.0,0.00011232,2]
[361081888,1747237846219,-400.0,0.00011232,2]
[361081889,1747237846229,-400.0,0.00011232,2]
[361081890,1747237846240,-1046.03,0.00011232,2]
[361081891,1747237846250,-400.0,0.00011232,2]
[361081892,1747237846260,-528.22,0.00011232,2]
[361081893,1747237846270,-400.0,0.00011232,2]
[361081894,1747237846280,-3851.120964,0.00011232,2]
[361081895,1747237846290,-976.7,0.00011232,2]
[361081896,1747237846299,-400.0,0.00011232,2]
[361081897,1747237846310,-1174.07,0.00011232,2]
[361081898,1747237846320,-400.0,0.00011232,2]
[361081899,1747237846329,-400.0,0.00011232,2]
[361081900,1747237846339,-400.0,0.00011232,2]
[361081901,1747237846349,-400.0,0.00011232,2]
[361081902,1747237846359,-400.0,0.00011232,2]
[361081903,1747237846368,-400.0,0.00011232,2]
[361081904,1747237846378,-400.0,0.00011232,2]
[361081905,1747237846388,-655.04773246,0.00011232,2]
[361081906,1747237846798,-69.96226754,0.00011232,2]
[361081907,1747237846808,-484.12773246,0.00011232,2]
[361081908,1747237846820,-101.30226754,0.00011232,2]
[361081909,1747237846829,-400.0,0.00011232,2]
[361081910,1747237846839,-176.22117785,0.00011232,2]
[361081911,1747237846850,-400.0,0.00011232,2]
[361081912,1747237846860,-400.0,0.00011232,2]
[361081913,1747237846869,-154.12473045,0.00011232,2]
[361081914,1747237847187,643.77,8.282e-05,2]
[361081915,1747237847298,-643.77,0.00010546,2]
[361081916,1747237847308,-539.7203996,0.00010958,2]
[361081917,1747237847317,-245.87526955,0.00011232,2]
[361081918,1747237847327,-400.0,0.00011232,2]
[361081919,1747237847337,-400.0,0.00011232,2]
[361081920,1747237847348,-2963.27,0.00011232,2]
[361081921,1747237847358,-400.0,0.00011232,2]
[361081922,1747237847367,-1041.22,0.00011232,2]
[361081923,1747237847377,-414.32,0.00011232,2]
[361081924,1747237847387,-400.0,0.00011232,2]
[361081925,1747237847396,-400.0,0.00011232,2]
[361081926,1747237847406,-2225.22,0.00011232,2]
[361081927,1747237847416,-400.0,0.00011232,2]
[361081928,1747237847425,-151.0,0.00011232,2]
[361081929,1747237847435,-151.0,0.00011232,2]
[361081930,1747237847445,-479.22,0.00011232,2]
[361081931,1747237847456,-400.0,0.00011232,2]
[361081932,1747237847466,-731.14,0.00011232,2]
[361081933,1747237847476,-400.0,0.00011232,2]
[361081934,1747237847486,-400.0,0.00011232,2]
[361081935,1747237847496,-400.0,0.00011232,2]
[361081936,1747237847506,-441.52,0.00011232,2]
[361081937,1747237847516,-526.97,0.00011232,2]
[361081938,1747237847526,-400.0,0.00011232,2]
[361081939,1747237847535,-833.46,0.00011232,2]
[361081940,1747237847546,-2978.816136,0.00011232,2]
[361081941,1747237847556,-522.06,0.00011232,2]
[361081942,1747237847566,-400.0,0.00011232,2]
[361081943,1747237847576,-400.0,0.00011232,2]
[361081944,1747237847586,-1452.718391,0.00011232,2]
[361081945,1747237847596,-2978.816136,0.00011232,2]
[361081946,1747237847606,-422.19,0.00011232,2]
[361081947,1747237847619,-1452.718391,0.00011232,2]
[361081948,1747237847629,-400.0,0.00011232,2]
[361081949,1747237847639,-510.42,0.00011232,2]
[361081950,1747237847649,-400.0,0.00011232,2]
[361081951,1747237847659,-441.08,0.00011232,2]
[361081952,1747237847670,-400.0,0.00011232,2]
[361081953,1747237847679,-400.0,0.00011232,2]
[361081954,1747237847691,-400.0,0.00011232,2]
[361081955,1747237847702,-742.16,0.00011232,2]
[361081956,1747237847712,-400.0,0.00011232,2]
[361081957,1747237847722,-400.0,0.00011232,2]
[361081958,1747237847732,-400.0,0.00011232,2]
[361081959,1747237847742,-694.84,0.00011232,2]
[361081960,1747237847752,-400.0,0.00011232,2]
[361081961,1747237847762,-458.32,0.00011232,2]
[361081962,1747237847771,-179.06802,0.00011232,2]
[361081963,1747237847782,-552.37,0.00011232,2]
[361081964,1747237847791,-151.0,0.00011232,2]
[361081965,1747237847801,-151.0,0.00011232,2]
[361081966,1747237847810,-400.0,0.00011232,2]
[361081967,1747237847820,-400.0,0.00011232,2]
[361081968,1747237847829,-179.06802,0.00011232,2]
[361081969,1747237847838,-151.0,0.00011232,2]
[361081970,1747237847848,-400.0,0.00011232,2]
[361081971,1747237847859,-400.0,0.00011232,2]
[361081972,1747237847868,-450.0,0.00011232,2]
[361081973,1747237847878,-400.0,0.00011232,2]
[361081974,1747237847888,-400.0,0.00011232,2]
[361081975,1747237847899,-400.0,0.00011232,2]
[361081976,1747237847909,-316.84506215,0.00011232,2]
[361081977,1747237847919,-943.91,0.00011232,2]
[361081978,1747237847928,-400.0,0.00011232,2]
[361081979,1747237847938,-400.0,0.00011232,2]
[361081980,1747237847947,-400.0,0.00011232,2]
[361081981,1747237847957,-400.0,0.00011232,2]
[361081982,1747237847966,-731.26,0.00011232,2]
[361081983,1747237847976,-400.0,0.00011232,2]
[361081984,1747237847987,-400.0,0.00011232,2]
[361081985,1747237847998,-400.0,0.00011232,2]
[361081986,1747237848008,-400.0,0.00011232,2]
[361081987,1747237848018,-402.79,0.00011232,2]
[361081988,1747237848028,-151.0,0.00011232,2]
[361081989,1747237848038,-400.0,0.00011232,2]
[361081990,1747237848048,-400.0,0.00011232,2]
[361081991,1747237848059,-400.0,0.00011232,2]
[361081992,1747237848068,-681.0,0.00011232,2]
[361081993,1747237848078,-698.47,0.00011232,2]
[361081994,1747237848088,-400.08658,0.00011232,2]
[361081995,1747237848098,-595.76,0.00011232,2]
[361081996,1747237848108,-400.0,0.00011232,2]
[361081997,1747237848118,-400.08658,0.00011232,2]
[361081998,1747237848127,-400.0,0.00011232,2]
[361081999,1747237848137,-400.0,0.00011232,2]
[361082000,1747237848147,-654.02,0.00011232,2]
[361082001,1747237848157,-697.3,0.00011232,2]
[361082002,1747237848166,-400.0,0.00011232,2]
[361082003,1747237848176,-400.0,0.00011232,2]
[361082004,1747237848186,-436.42,0.00011232,2]
[361082005,1747237848196,-400.0,0.00011232,2]
[361082006,1747237848206,-655.29,0.00011232,2]
[361082007,1747237848215,-400.0,0.00011232,2]
[361082008,1747237848225,-400.0,0.00011232,2]
[361082009,1747237848235,-526.37,0.00011232,2]
[361082010,1747237848246,-400.0,0.00011232,2]
[361082011,1747237848256,-151.0,0.00011232,2]
[361082012,1747237848265,-630.02,0.00011232,2]
[361082013,1747237848276,-400.0,0.00011232,2]
[361082014,1747237848286,-400.0,0.00011232,2]
[361082015,1747237848295,-465.04,0.00011232,2]
[361082016,1747237848305,-400.0,0.00011232,2]
[361082017,1747237848315,-998.76,0.00011232,2]
[361082018,1747237848324,-400.0,0.00011232,2]
[361082019,1747237848334,-651.75,0.00011232,2]
[361082020,1747237848344,-400.0,0.00011232,2]
[361082021,1747237848355,-151.0,0.00011232,2]